[Event "Klubbmästerskap 2025 Torsdagar"]
[Site "Linköping, Sweden"]
[Date "2025.04.10"]
[Round "9.2"]
[White "Pettersson, Börje"]
[Black "Löfgren, Vide"]
[Result "1-0"]
[TimeControl "90 min + 30 sec/move"]
[WhiteElo "1906"]
[BlackElo "1928"]

1. e4 {[%clk 01:30:59]} {[%emt 00:22:06]} d6 {[%clk 01:30:07]} {[%emt
00:00:54]} 2. d4 {[%clk 01:31:12]} {[%emt 00:00:16]} g6 {[%clk 01:30:11]}
{[%emt 00:00:27]} 3. Nc3 {[%clk 01:30:47]} {[%emt 00:00:54]} Bg7 {[%clk
01:30:13]} {[%emt 00:00:29]} 4. f4 {[%clk 01:30:19]} {[%emt 00:00:58]} a6
{[%clk 01:22:51]} {[%emt 00:07:53]} 5. Nf3 {[%clk 01:27:56]} {[%emt 00:02:51]}
b5 {[%clk 01:23:10]} {[%emt 00:00:12]} 6. Bd3 {[%clk 01:27:36]} {[%emt
00:00:49]} Nd7 {[%clk 01:22:10]} {[%emt 00:01:31]} 7. d5 {[%clk 01:21:50]}
{[%emt 00:06:15]} Bb7 {[%clk 01:18:30]} {[%emt 00:04:12]} 8. Be3 {[%clk
01:16:17]} {[%emt 00:06:01]} Ngf6 {[%clk 01:10:56]} {[%emt 00:08:05]} 9. Nd4
{[%clk 01:08:27]} {[%emt 00:08:19]} Nc5 {[%clk 01:03:06]} {[%emt 00:08:21]} 10.
b4 {[%clk 01:01:38]} {[%emt 00:07:19]} Nxd3+ {[%clk 01:00:25]} {[%emt
00:03:11]} 11. cxd3 {[%clk 01:01:41]} {[%emt 00:00:26]} Qd7 {[%clk 00:59:44]}
{[%emt 00:01:12]} 12. h3 {[%clk 00:59:27]} {[%emt 00:02:44]} e6 {[%clk
00:52:25]} {[%emt 00:07:50]} 13. dxe6 {[%clk 00:52:40]} {[%emt 00:07:16]} fxe6
{[%clk 00:52:30]} {[%emt 00:00:24]} 14. O-O {[%clk 00:48:40]} {[%emt 00:04:30]}
O-O {[%clk 00:45:08]} {[%emt 00:07:52]} 15. Qb3 {[%clk 00:45:41]} {[%emt
00:03:28]} Rae8 {[%clk 00:41:48]} {[%emt 00:03:52]} 16. f5 {[%clk 00:42:06]}
{[%emt 00:04:04]} gxf5 {[%clk 00:40:13]} {[%emt 00:02:05]} 17. exf5 {[%clk
00:40:40]} {[%emt 00:01:56]} Kh8 {[%clk 00:14:09]} {[%emt 00:26:35]} 18. fxe6
{[%clk 00:39:53]} {[%emt 00:01:16]} Qe7 {[%clk 00:12:04]} {[%emt 00:02:35]} 19.
Rae1 {[%clk 00:32:06]} {[%emt 00:08:16]} Rg8 {[%clk 00:09:10]} {[%emt
00:03:26]} 20. Bg5 {[%clk 00:27:17]} {[%emt 00:05:19]} c5 {[%clk 00:04:04]}
{[%emt 00:05:37]} 21. Nf5 {[%clk 00:25:26]} {[%emt 00:02:19]} Qc7 {[%clk
00:03:06]} {[%emt 00:01:29]} 22. Nxg7 {[%clk 00:24:11]} {[%emt 00:01:44]} Bxg2
{[%clk 00:01:33]} {[%emt 00:02:04]} 23. Bxf6 {[%clk 00:22:40]} {[%emt
00:02:00]} Rxg7 {[%clk 00:01:50]} {[%emt 00:00:13]} 24. e7 {[%clk 00:10:00]}
{[%emt 00:13:10]} Bxf1+ {[%clk 00:00:45]} {[%emt 00:01:36]} 25. Kxf1 {[%clk
00:09:42]} {[%emt 00:00:47]} c4 {[%clk 00:00:34]} {[%emt 00:00:42]} 26. dxc4
{[%clk 00:09:45]} {[%emt 00:00:26]} Qd7 {[%clk 00:00:35]} {[%emt 00:00:29]} 27.
Nd5 {[%clk 00:04:56]} {[%emt 00:05:19]} Qf5+ {[%clk 00:00:35]} {[%emt
00:00:30]} 28. Ke2 {[%clk 00:04:57]} {[%emt 00:00:28]} bxc4 {[%clk 00:00:33]}
{[%emt 00:00:34]} 29. Bxg7+ {[%clk 00:02:04]} {[%emt 00:03:22]} Kxg7 {[%clk
00:00:36]} {[%emt 00:00:27]} 30. Qc3+ {[%clk 00:02:28]} {[%emt 00:00:06]} Kh6
{[%clk 00:00:33]} {[%emt 00:00:33]} 31. Qe3+ {[%clk 00:02:20]} {[%emt
00:00:37]} Kg6 {[%clk 00:00:32]} {[%emt 00:00:32]} 32. Rg1+ {[%clk 00:02:22]}
{[%emt 00:00:27]} Kh5 {[%clk 00:00:54]} {[%emt 00:00:09]} 33. Qf3+ {[%clk
00:00:53]} {[%emt 00:01:58]} Qxf3+ {[%clk 00:01:06]} {[%emt 00:00:18]} 34. Kxf3
{[%clk 00:01:20]} {[%emt 00:00:02]} Kh4 {[%clk 00:00:40]} {[%emt 00:00:57]} 35.
Re1 {[%clk 00:01:16]} {[%emt 00:00:34]} Kxh3 {[%clk 00:00:57]} {[%emt
00:00:15]} 36. Rh1 {[%clk 00:01:32]} {[%emt 00:00:12]} 1-0

[Event "Klubbmästerskap 2025 Torsdagar"]
[Site "Linköping, Sweden"]
[Date "2025.04.10"]
[Round "9.3"]
[White "Gustafsson, Nils"]
[Black "Halvarsson, Peter"]
[Result "0-1"]
[TimeControl "90 min + 30 sec/move"]
[WhiteElo "1860"]
[BlackElo "1927"]

1. e4 {[%clk 01:30:54]} {[%emt 00:00:04]} g6 {[%clk 01:30:22]} {[%emt
00:00:38]} 2. d4 {[%clk 01:31:00]} {[%emt 00:00:25]} Bg7 {[%clk 01:30:45]}
{[%emt 00:00:07]} 3. f4 {[%clk 01:29:58]} {[%emt 00:01:32]} c5 {[%clk
01:30:52]} {[%emt 00:00:23]} 4. dxc5 {[%clk 01:26:22]} {[%emt 00:04:07]} Qa5+
{[%clk 01:30:26]} {[%emt 00:00:56]} 5. Nc3 {[%clk 01:26:23]} {[%emt 00:00:28]}
Bxc3+ {[%clk 01:28:18]} {[%emt 00:02:38]} 6. bxc3 {[%clk 01:26:42]} {[%emt
00:00:10]} Qxc3+ {[%clk 01:28:40]} {[%emt 00:00:09]} 7. Bd2 {[%clk 01:26:56]}
{[%emt 00:00:16]} Qxc5 {[%clk 01:29:03]} {[%emt 00:00:08]} 8. Nf3 {[%clk
01:26:19]} {[%emt 00:01:06]} Nf6 {[%clk 01:20:12]} {[%emt 00:09:20]} 9. Bd3
{[%clk 01:24:19]} {[%emt 00:02:30]} d5 {[%clk 01:07:43]} {[%emt 00:13:00]} 10.
e5 {[%clk 01:17:21]} {[%emt 00:07:28]} Ne4 {[%clk 01:07:34]} {[%emt 00:00:38]}
11. Bxe4 {[%clk 01:17:24]} {[%emt 00:00:26]} dxe4 {[%clk 01:07:34]} {[%emt
00:00:31]} 12. Ng5 {[%clk 01:13:47]} {[%emt 00:04:08]} e3 {[%clk 01:07:54]}
{[%emt 00:00:10]} 13. Ne4 {[%clk 01:00:06]} {[%emt 00:14:10]} exd2+ {[%clk
01:06:42]} {[%emt 00:01:42]} 14. Qxd2 {[%clk 01:00:27]} {[%emt 00:00:09]} Qc4
{[%clk 01:06:01]} {[%emt 00:01:11]} 15. O-O-O {[%clk 00:59:42]} {[%emt
00:01:15]} Nc6 {[%clk 01:05:10]} {[%emt 00:01:22]} 16. Nf6+ {[%clk 00:51:52]}
{[%emt 00:08:20]} exf6 {[%clk 01:01:30]} {[%emt 00:04:10]} 17. exf6 {[%clk
00:51:51]} {[%emt 00:00:31]} Be6 {[%clk 00:53:49]} {[%emt 00:08:10]} 18. Rhe1
{[%clk 00:50:29]} {[%emt 00:01:52]} Rd8 {[%clk 00:53:29]} {[%emt 00:00:50]} 19.
Qf2 {[%clk 00:49:23]} {[%emt 00:01:36]} Rxd1+ {[%clk 00:53:12]} {[%emt
00:00:48]} 20. Rxd1 {[%clk 00:49:34]} {[%emt 00:00:18]} Qc3 {[%clk 00:52:02]}
{[%emt 00:01:40]} 0-1

[Event "Klubbmästerskap 2025 Torsdagar"]
[Site "Linköping, Sweden"]
[Date "2025.04.10"]
[Round "9.4"]
[White "Ekman, Theo"]
[Black "Leijon, Noah"]
[Result "1-0"]
[TimeControl "90 min + 30 sec/move"]
[WhiteElo "1806"]
[BlackElo "1803"]

1. e4 {[%clk 01:30:55]} {[%emt 00:00:02]} c5 {[%clk 01:30:55]} {[%emt
00:00:07]} 2. Nc3 {[%clk 01:31:16]} {[%emt 00:00:08]} Nc6 {[%clk 01:31:17]}
{[%emt 00:00:09]} 3. f4 {[%clk 01:31:32]} {[%emt 00:00:15]} e6 {[%clk
01:30:54]} {[%emt 00:00:53]} 4. Nf3 {[%clk 01:30:56]} {[%emt 00:01:05]} Be7
{[%clk 01:29:08]} {[%emt 00:02:16]} 5. Bc4 {[%clk 01:29:36]} {[%emt 00:01:47]}
Nf6 {[%clk 01:27:22]} {[%emt 00:02:18]} 6. e5 {[%clk 01:28:27]} {[%emt
00:01:39]} Ng4 {[%clk 01:27:03]} {[%emt 00:00:49]} 7. O-O {[%clk 01:26:50]}
{[%emt 00:02:06]} b6 {[%clk 01:16:42]} {[%emt 00:10:53]} 8. a4 {[%clk
01:10:57]} {[%emt 00:16:21]} d6 {[%clk 01:04:34]} {[%emt 00:12:39]} 9. exd6
{[%clk 01:06:23]} {[%emt 00:05:04]} Qxd6 {[%clk 00:51:21]} {[%emt 00:13:43]} 10.
d3 {[%clk 01:02:28]} {[%emt 00:04:26]} Nd4 {[%clk 00:44:23]} {[%emt 00:07:29]}
11. Ne4 {[%clk 00:56:58]} {[%emt 00:05:57]} Nxf3+ {[%clk 00:37:29]} {[%emt
00:07:27]} 12. Qxf3 {[%clk 00:55:57]} {[%emt 00:01:29]} Qd4+ {[%clk 00:30:25]}
{[%emt 00:07:36]} 13. Kh1 {[%clk 00:54:20]} {[%emt 00:02:06]} f5 {[%clk
00:22:12]} {[%emt 00:08:44]} 14. Bb5+ {[%clk 00:46:23]} {[%emt 00:08:27]} Kf7
{[%clk 00:18:16]} {[%emt 00:04:27]} 15. c3 {[%clk 00:40:01]} {[%emt 00:06:51]}
fxe4 {[%clk 00:13:58]} {[%emt 00:04:49]} 16. Qxg4 {[%clk 00:39:38]} {[%emt
00:00:52]} Qd5 {[%clk 00:13:03]} {[%emt 00:01:26]} 17. Bc4 {[%clk 00:38:00]}
{[%emt 00:02:07]} Qc6 {[%clk 00:11:36]} {[%emt 00:01:58]} 18. f5 {[%clk
00:31:37]} {[%emt 00:06:53]} Bf6 {[%clk 00:11:48]} {[%emt 00:00:18]} 19. dxe4
{[%clk 00:29:11]} {[%emt 00:02:56]} Ke7 {[%clk 00:10:03]} {[%emt 00:02:15]} 20.
Bg5 {[%clk 00:26:25]} {[%emt 00:03:14]} Bd7 {[%clk 00:07:38]} {[%emt 00:02:57]}
21. e5 {[%clk 00:18:40]} {[%emt 00:08:15]} exf5 {[%clk 00:06:16]} {[%emt
00:01:52]} 22. exf6+ {[%clk 00:18:59]} {[%emt 00:00:10]} gxf6 {[%clk 00:05:30]}
{[%emt 00:01:17]} 23. Qe2+ {[%clk 00:16:23]} {[%emt 00:03:02]} Kd8 {[%clk
00:04:06]} {[%emt 00:01:58]} 24. Bb5 {[%clk 00:15:26]} {[%emt 00:01:26]} 1-0

[Event "Klubbmästerskap 2025 Torsdagar"]
[Site "Linköping, Sweden"]
[Date "2025.04.10"]
[Round "9.5"]
[White "Ahlström, Per"]
[Black "Qwarfort, Fredrik"]
[Result "1-0"]
[TimeControl "90 min + 30 sec/move"]
[WhiteElo "1820"]
[BlackElo "1826"]

1. e4 {[%clk 01:30:40]} {[%emt 00:00:18]} d6 {[%clk 01:30:49]} {[%emt
00:00:12]} 2. d4 {[%clk 01:31:02]} {[%emt 00:00:09]} Nf6 {[%clk 01:31:14]}
{[%emt 00:00:04]} 3. Nc3 {[%clk 01:31:27]} {[%emt 00:00:05]} g6 {[%clk
01:31:40]} {[%emt 00:00:04]} 4. Bg5 {[%clk 01:30:04]} {[%emt 00:01:52]} Bg7
{[%clk 01:31:58]} {[%emt 00:00:13]} 5. Qd2 {[%clk 01:29:04]} {[%emt 00:01:30]}
c6 {[%clk 01:32:08]} {[%emt 00:00:20]} 6. Bd3 {[%clk 01:23:55]} {[%emt
00:05:39]} b5 {[%clk 01:31:06]} {[%emt 00:01:33]} 7. f4 {[%clk 01:23:26]}
{[%emt 00:00:58]} Qb6 {[%clk 01:27:11]} {[%emt 00:04:25]} 8. e5 {[%clk
01:09:13]} {[%emt 00:14:43]} dxe5 {[%clk 01:25:50]} {[%emt 00:01:52]} 9. fxe5
{[%clk 01:03:29]} {[%emt 00:06:13]} Nd5 {[%clk 01:23:37]} {[%emt 00:02:43]} 10.
Nxd5 {[%clk 00:54:07]} {[%emt 00:09:52]} cxd5 {[%clk 01:23:06]} {[%emt
00:01:01]} 11. Qb4 {[%clk 00:51:15]} {[%emt 00:03:22]} f6 {[%clk 01:07:51]}
{[%emt 00:15:46]} 12. exf6 {[%clk 00:42:43]} {[%emt 00:09:01]} exf6 {[%clk
01:08:09]} {[%emt 00:00:13]} 13. O-O-O {[%clk 00:35:08]} {[%emt 00:08:04]} Nc6
{[%clk 00:43:32]} {[%emt 00:25:07]} 14. Re1+ {[%clk 00:27:29]} {[%emt
00:08:08]} Kf7 {[%clk 00:42:04]} {[%emt 00:01:59]} 15. Qb3 {[%clk 00:23:42]}
{[%emt 00:04:17]} Nxd4 {[%clk 00:36:00]} {[%emt 00:06:34]} 16. Qb4 {[%clk
00:16:19]} {[%emt 00:07:53]} Nc6 {[%clk 00:32:32]} {[%emt 00:03:58]} 17. Qf4
{[%clk 00:10:39]} {[%emt 00:06:10]} Be6 {[%clk 00:24:40]} {[%emt 00:08:22]} 18.
Bxf6 {[%clk 00:10:08]} {[%emt 00:01:02]} Bxf6 {[%clk 00:24:42]} {[%emt
00:00:28]} 19. Nf3 {[%clk 00:06:28]} {[%emt 00:04:10]} Qb8 {[%clk 00:15:53]}
{[%emt 00:09:19]} 20. Ng5+ {[%clk 00:06:37]} {[%emt 00:00:21]} Kg7 {[%clk
00:12:45]} {[%emt 00:03:38]} 21. Nxe6+ {[%clk 00:06:48]} {[%emt 00:00:19]} Kf7
{[%clk 00:13:01]} {[%emt 00:00:13]} 22. Qf3 {[%clk 00:03:15]} {[%emt 00:04:04]}
Ne5 {[%clk 00:02:06]} {[%emt 00:11:25]} 23. Qxd5 {[%clk 00:03:30]} {[%emt
00:00:16]} Nxd3+ {[%clk 00:02:30]} {[%emt 00:00:06]} 24. cxd3 {[%clk 00:02:11]}
{[%emt 00:01:48]} Qc8+ {[%clk 00:02:48]} {[%emt 00:00:13]} 25. Kb1 {[%clk
00:02:35]} {[%emt 00:00:06]} Re8 {[%clk 00:00:35]} {[%emt 00:02:43]} 26. Nc7+
{[%clk 00:02:02]} {[%emt 00:01:03]} 1-0

[Event "Klubbmästerskap 2025 Torsdagar"]
[Site "Linköping, Sweden"]
[Date "2025.04.10"]
[Round "9.6"]
[White "Garner, Mårten"]
[Black "Lilljebjörn, Erik Gustaf"]
[Result "1-0"]
[TimeControl "90 min + 30 sec/move"]
[WhiteElo "1841"]
[BlackElo "1783"]

1. d4 {[%clk 01:30:56]} {[%emt 00:00:03]} Nf6 {[%clk 01:30:52]} {[%emt
00:00:08]} 2. c4 {[%clk 01:31:19]} {[%emt 00:00:07]} g6 {[%clk 01:31:09]}
{[%emt 00:00:13]} 3. Nc3 {[%clk 01:31:43]} {[%emt 00:00:05]} Bg7 {[%clk
01:31:22]} {[%emt 00:00:18]} 4. e4 {[%clk 01:32:00]} {[%emt 00:00:13]} d6
{[%clk 01:31:36]} {[%emt 00:00:16]} 5. f3 {[%clk 01:32:19]} {[%emt 00:00:11]}
O-O {[%clk 01:31:36]} {[%emt 00:00:31]} 6. Be3 {[%clk 01:32:42]} {[%emt
00:00:06]} c6 {[%clk 01:31:38]} {[%emt 00:00:28]} 7. Nge2 {[%clk 01:32:50]}
{[%emt 00:00:22]} Qc7 {[%clk 01:31:20]} {[%emt 00:00:49]} 8. Qd2 {[%clk
01:32:51]} {[%emt 00:00:28]} Re8 {[%clk 01:31:04]} {[%emt 00:00:46]} 9. g4
{[%clk 01:31:10]} {[%emt 00:02:11]} e5 {[%clk 01:26:44]} {[%emt 00:04:51]} 10.
d5 {[%clk 01:30:23]} {[%emt 00:01:17]} Nbd7 {[%clk 01:18:06]} {[%emt 00:09:08]}
11. Ng3 {[%clk 01:28:43]} {[%emt 00:02:08]} Nf8 {[%clk 01:09:00]} {[%emt
00:09:39]} 12. O-O-O {[%clk 01:18:01]} {[%emt 00:11:10]} cxd5 {[%clk 00:59:15]}
{[%emt 00:10:16]} 13. cxd5 {[%clk 01:18:12]} {[%emt 00:00:18]} Bd7 {[%clk
00:59:04]} {[%emt 00:00:42]} 14. Kb1 {[%clk 01:18:17]} {[%emt 00:00:24]} b5
{[%clk 00:54:06]} {[%emt 00:05:29]} 15. Rc1 {[%clk 01:13:42]} {[%emt 00:05:03]}
Qb7 {[%clk 00:52:21]} {[%emt 00:02:16]} 16. h4 {[%clk 01:10:09]} {[%emt
00:04:00]} b4 {[%clk 00:46:34]} {[%emt 00:06:20]} 17. Nd1 {[%clk 01:10:10]}
{[%emt 00:00:28]} a5 {[%clk 00:42:29]} {[%emt 00:04:36]} 18. h5 {[%clk
01:09:52]} {[%emt 00:00:47]} Rec8 {[%clk 00:38:25]} {[%emt 00:04:34]} 19. Rxc8
{[%clk 01:09:22]} {[%emt 00:01:00]} Rxc8 {[%clk 00:38:28]} {[%emt 00:00:28]} 20.
hxg6 {[%clk 01:09:07]} {[%emt 00:00:43]} fxg6 {[%clk 00:38:44]} {[%emt
00:00:15]} 21. Nf2 {[%clk 01:02:56]} {[%emt 00:06:39]} b3 {[%clk 00:32:04]}
{[%emt 00:07:12]} 22. a3 {[%clk 01:02:32]} {[%emt 00:00:54]} a4 {[%clk
00:30:37]} {[%emt 00:01:58]} 23. Bd3 {[%clk 01:01:48]} {[%emt 00:01:11]} Bb5
{[%clk 00:27:42]} {[%emt 00:03:27]} 24. Rc1 {[%clk 00:56:16]} {[%emt 00:06:02]}
Bxd3+ {[%clk 00:25:09]} {[%emt 00:03:04]} 25. Nxd3 {[%clk 00:55:48]} {[%emt
00:00:57]} Rxc1+ {[%clk 00:21:17]} {[%emt 00:04:23]} 26. Qxc1 {[%clk 00:55:42]}
{[%emt 00:00:36]} h5 {[%clk 00:17:45]} {[%emt 00:04:02]} 27. gxh5 {[%clk
00:51:31]} {[%emt 00:04:40]} gxh5 {[%clk 00:14:59]} {[%emt 00:03:16]} 28. Nf5
{[%clk 00:49:58]} {[%emt 00:02:01]} Qa6 {[%clk 00:12:00]} {[%emt 00:03:31]} 29.
Nb4 {[%clk 00:47:51]} {[%emt 00:02:35]} Qe2 {[%clk 00:10:48]} {[%emt 00:01:44]}
30. Qg1 {[%clk 00:46:36]} {[%emt 00:01:42]} Ng4 31. fxg4 {[%clk 00:46:18]} hxg4
{[%clk 00:08:21]} {[%emt 00:00:04]} 32. Ng3 {[%clk 00:36:17]} {[%emt 00:10:29]}
Qf3 {[%clk 00:06:51]} {[%emt 00:02:01]} 33. Kc1 {[%clk 00:32:19]} {[%emt
00:04:28]} Ng6 {[%clk 00:05:12]} {[%emt 00:02:10]} 34. Qf2 {[%clk 00:31:51]}
{[%emt 00:00:56]} Nf4 {[%clk 00:02:13]} {[%emt 00:03:31]} 35. Qxf3 {[%clk
00:31:43]} {[%emt 00:00:38]} gxf3 {[%clk 00:02:39]} {[%emt 00:00:04]} 36. Bxf4
{[%clk 00:31:00]} {[%emt 00:01:12]} exf4 {[%clk 00:02:59]} {[%emt 00:00:10]} 37.
Nf1 {[%clk 00:31:14]} {[%emt 00:00:15]} Bd4 {[%clk 00:01:49]} {[%emt 00:01:42]}
38. Nd3 {[%clk 00:30:28]} {[%emt 00:01:13]} Be3+ {[%clk 00:01:53]} {[%emt
00:00:28]} 39. Kd1 {[%clk 00:29:12]} {[%emt 00:01:44]} Kf7 {[%clk 00:01:44]}
{[%emt 00:00:42]} 40. Nh2 {[%clk 00:29:03]} {[%emt 00:00:38]} Kf6 {[%clk
00:01:46]} {[%emt 00:00:29]} 41. Nxf3 {[%clk 00:29:15]} {[%emt 00:00:18]} Kg6
{[%clk 00:01:16]} {[%emt 00:01:01]} 42. Ke2 {[%clk 00:29:31]} {[%emt 00:00:13]}
Kh5 {[%clk 00:01:20]} {[%emt 00:00:27]} 43. Nh2 {[%clk 00:28:58]} {[%emt
00:00:58]} Kg5 {[%clk 00:01:14]} {[%emt 00:00:39]} 44. Kf3 {[%clk 00:29:09]}
{[%emt 00:00:18]} Bd4 {[%clk 00:00:49]} {[%emt 00:00:56]} 45. Nf1 {[%clk
00:28:55]} {[%emt 00:00:43]} Bf6 {[%clk 00:00:40]} {[%emt 00:00:41]} 46. Nd2
{[%clk 00:28:34]} {[%emt 00:00:48]} 1-0

[Event "Klubbmästerskap 2025 Torsdagar"]
[Site "Linköping, Sweden"]
[Date "2025.04.10"]
[Round "9.7"]
[White "Stefanovic, Dragan 1958"]
[Black "Snällfot, Magnus"]
[Result "0-1"]
[TimeControl "90 min + 30 sec/move"]
[WhiteElo "1791"]
[BlackElo "1778"]

1. d4 {[%clk 01:30:41]} {[%emt 00:00:18]} Nf6 {[%clk 01:30:29]} {[%emt
00:00:22]} 2. Nc3 {[%clk 01:31:10]} {[%emt 00:00:11]} d5 {[%clk 01:30:17]}
{[%emt 00:00:42]} 3. e4 {[%clk 01:30:27]} {[%emt 00:01:13]} dxe4 {[%clk
01:28:31]} {[%emt 00:02:15]} 4. f3 {[%clk 01:30:08]} {[%emt 00:00:49]} exf3
{[%clk 01:28:11]} {[%emt 00:00:50]} 5. Nxf3 {[%clk 01:30:28]} {[%emt 00:00:10]}
Bg4 {[%clk 01:25:42]} {[%emt 00:02:55]} 6. h3 {[%clk 01:30:23]} {[%emt
00:00:40]} Bh5 {[%clk 01:25:53]} {[%emt 00:00:18]} 7. g4 {[%clk 01:24:33]}
{[%emt 00:06:20]} Bg6 {[%clk 01:24:40]} {[%emt 00:01:43]} 8. Ne5 {[%clk
01:24:43]} {[%emt 00:00:21]} e6 {[%clk 01:24:22]} {[%emt 00:00:47]} 9. Bg5
{[%clk 01:24:26]} {[%emt 00:00:47]} Be7 {[%clk 01:21:59]} {[%emt 00:02:52]} 10.
Bg2 {[%clk 01:24:28]} {[%emt 00:00:28]} c6 {[%clk 01:22:21]} {[%emt 00:00:10]}
11. Qd2 {[%clk 01:23:58]} {[%emt 00:00:59]} Nbd7 {[%clk 01:22:10]} {[%emt
00:00:41]} 12. Nxg6 {[%clk 01:23:55]} {[%emt 00:00:33]} hxg6 {[%clk 01:22:30]}
{[%emt 00:00:10]} 13. a3 {[%clk 01:23:39]} {[%emt 00:00:47]} Nd5 {[%clk
01:16:30]} {[%emt 00:06:29]} 14. Bxe7 {[%clk 01:22:43]} {[%emt 00:01:26]} Qxe7
{[%clk 01:15:53]} {[%emt 00:01:06]} 15. O-O-O {[%clk 01:21:17]} {[%emt
00:01:57]} Nxc3 {[%clk 01:15:42]} {[%emt 00:00:41]} 16. Qxc3 {[%clk 01:21:34]}
{[%emt 00:00:14]} Nf6 {[%clk 01:15:39]} {[%emt 00:00:32]} 17. Bxc6+ {[%clk
01:16:04]} {[%emt 00:06:01]} Nd7 {[%clk 01:14:34]} {[%emt 00:01:34]} 18. Bxb7
{[%clk 01:07:16]} {[%emt 00:09:18]} Rb8 {[%clk 01:13:56]} {[%emt 00:01:07]} 19.
Bc6 {[%clk 01:07:03]} {[%emt 00:00:41]} O-O {[%clk 01:14:12]} {[%emt 00:00:17]}
20. Ba4 {[%clk 01:06:34]} {[%emt 00:00:59]} Rfc8 {[%clk 01:12:23]} {[%emt
00:02:19]} 21. Qe3 {[%clk 01:05:27]} {[%emt 00:01:33]} Nf6 {[%clk 01:10:42]}
{[%emt 00:02:16]} 22. d5 {[%clk 01:01:24]} {[%emt 00:04:33]} Qb7 {[%clk
01:03:22]} {[%emt 00:07:49]} 23. Qd4 {[%clk 00:42:12]} {[%emt 00:19:43]} Nxd5
{[%clk 00:59:53]} {[%emt 00:03:58]} 24. Rd3 {[%clk 00:41:01]} {[%emt 00:01:41]}
Nf4 {[%clk 00:58:07]} {[%emt 00:02:16]} 25. Qxf4 {[%clk 00:35:21]} {[%emt
00:06:10]} Qxh1+ {[%clk 00:58:26]} {[%emt 00:00:11]} 26. Kd2 {[%clk 00:35:43]}
{[%emt 00:00:09]} Rd8 {[%clk 00:57:16]} {[%emt 00:01:39]} 27. Ke2 {[%clk
00:34:06]} {[%emt 00:02:08]} Qg2+ {[%clk 00:56:58]} {[%emt 00:00:46]} 28. Ke1
{[%clk 00:34:27]} {[%emt 00:00:10]} e5 {[%clk 00:51:25]} {[%emt 00:06:03]} 29.
Qxe5 {[%clk 00:32:27]} {[%emt 00:02:30]} Qb7 {[%clk 00:47:34]} {[%emt
00:04:21]} 30. Qe3 {[%clk 00:19:44]} {[%emt 00:13:10]} Rxd3 {[%clk 00:45:21]}
{[%emt 00:02:46]} 31. Qxd3 {[%clk 00:20:04]} {[%emt 00:00:10]} Qxb2 {[%clk
00:44:44]} {[%emt 00:01:07]} 32. Bb3 {[%clk 00:19:40]} {[%emt 00:00:54]} Qe5+
{[%clk 00:44:14]} {[%emt 00:00:58]} 33. Kd1 {[%clk 00:19:49]} {[%emt 00:00:23]}
Re8 {[%clk 00:44:15]} {[%emt 00:00:25]} 34. Kc1 {[%clk 00:13:07]} {[%emt
00:07:16]} Qa1+ {[%emt 00:00:23]} 0-1